[Event "Titled Tuesday Blitz November 15 Early 2022"]
[White "Marcolino, Daniel Mattos"]
[Black "parintele_chess"]
[WhiteFideId "2106841"]
[WhiteElo "2113"]
[BlackElo "2206"]
[Result "0-1"]
[Round "10"]
[TimeControl "180+1"]
[Date "2022.11.16"]
[WhiteClock "0:00:13"]
[BlackClock "0:00:03"]

1. d4 {[%clk 0:03:00]}  d5 {[%clk 0:02:59]} 2. Nf3 {[%clk 0:03:01]}  e6 {[%clk 0:02:59]} 3. g3 {[%clk 0:03:01]}  c5 {[%clk 0:02:59]} 4. Bg2 {[%clk 0:03:02]}  cxd4 {[%clk 0:02:58]} 5. Nxd4 {[%clk 0:03:00]}  Nc6 {[%clk 0:02:58]} 6. O-O {[%clk 0:03:00]}  Bc5 {[%clk 0:02:51]} 7. Nb3 {[%clk 0:03:00]}  Bb6 {[%clk 0:02:50]} 8. Nc3 {[%clk 0:02:49]}  Nf6 {[%clk 0:02:48]} 9. Na4 {[%clk 0:02:35]}  Bc7 {[%clk 0:02:48]} 10. Bg5 {[%clk 0:02:34]}  h6 {[%clk 0:02:46]} 11. Bxf6 {[%clk 0:02:22]}  Qxf6 {[%clk 0:02:47]} 12. e3 {[%clk 0:02:16]}  O-O {[%clk 0:02:45]} 13. Rc1 {[%clk 0:02:08]}  Rd8 {[%clk 0:02:35]} 14. Nd4 {[%clk 0:02:06]}  a6 {[%clk 0:02:11]} 15. Nxc6 {[%clk 0:01:48]}  bxc6 {[%clk 0:02:12]} 16. Qd4 {[%clk 0:01:45]}  e5 {[%clk 0:02:03]} 17. Qc3 {[%clk 0:01:26]}  Bf5 {[%clk 0:01:36]} 18. Rfd1 {[%clk 0:01:11]}  Rac8 {[%clk 0:01:33]} 19. Nc5 {[%clk 0:01:11]}  d4 {[%clk 0:01:27]} 20. exd4 {[%clk 0:01:04]}  exd4 {[%clk 0:01:28]} 21. Qc4 {[%clk 0:01:00]}  Bg4 {[%clk 0:00:56]} 22. Rd2 {[%clk 0:00:36]}  a5 {[%clk 0:00:45]} 23. h3 {[%clk 0:00:22]}  Bf5 {[%clk 0:00:34]} 24. Rcd1 {[%clk 0:00:22]}  Be5 {[%clk 0:00:21]} 25. Ne4 {[%clk 0:00:19]}  Bxe4 {[%clk 0:00:20]} 26. Bxe4 {[%clk 0:00:19]}  c5 {[%clk 0:00:20]} 27. Kg2 {[%clk 0:00:19]}  Bd6 {[%clk 0:00:16]} 28. a4 {[%clk 0:00:19]}  Rb8 {[%clk 0:00:15]} 29. b3 {[%clk 0:00:19]}  Rb4 {[%clk 0:00:16]} 30. Qe2 {[%clk 0:00:19]}  Qe7 {[%clk 0:00:10]} 31. Qf3 {[%clk 0:00:20]}  Qc7 {[%clk 0:00:09]} 32. Bd5 {[%clk 0:00:19]}  Rf8 {[%clk 0:00:09]} 33. Bc4 {[%clk 0:00:18]}  Rbb8 {[%clk 0:00:09]} 34. Re1 {[%clk 0:00:17]}  Rbe8 {[%clk 0:00:09]} 35. Rde2 {[%clk 0:00:18]}  Rxe2 {[%clk 0:00:09]} 36. Rxe2 {[%clk 0:00:18]}  Qb8 {[%clk 0:00:06]} 37. Qd5 {[%clk 0:00:17]}  Qc7 {[%clk 0:00:05]} 38. Re4 {[%clk 0:00:18]}  Kh7 {[%clk 0:00:03]} 39. Rg4 {[%clk 0:00:17]}  f5 {[%clk 0:00:03]} 40. Bd3 {[%clk 0:00:17]}  g6 {[%clk 0:00:01]} 41. Rh4 {[%clk 0:00:15]}  Be7 {[%clk 0:00:02]} 42. Rf4 {[%clk 0:00:15]}  Bg5 {[%clk 0:00:03]} 43. Rf3 {[%clk 0:00:15]}  Rd8 {[%clk 0:00:01]} 44. h4 {[%clk 0:00:15]}  Rxd5 {[%clk 0:00:01]} 45. hxg5 {[%clk 0:00:15]}  hxg5 {[%clk 0:00:01]} 46. Bc4 {[%clk 0:00:14]}  Re5 {[%clk 0:00:02]} 47. Rd3 {[%clk 0:00:14]}  Re1 {[%clk 0:00:02]} 48. Bb5 {[%clk 0:00:14]}  Qb7+ {[%clk 0:00:02]} 49. f3 {[%clk 0:00:12]}  Qe7 {[%clk 0:00:02]} 50. Kf2 {[%clk 0:00:13]}  Qe2# {[%clk 0:00:03]} 0-1


[Site "https://www.chess.com"]

[Event "Titled Tuesday Blitz November 15 Early 2022"]
[White "Martinez Alcantara, Jose Eduardo"]
[Black "Shimanov, Aleksandr"]
[WhiteFideId "3805662"]
[BlackFideId "4198603"]
[WhiteElo "2705"]
[BlackElo "2605"]
[Result "1/2-1/2"]
[Round "10"]
[TimeControl "180+1"]
[Date "2022.11.15"]
[WhiteClock "0:00:03"]
[BlackClock "0:00:02"]

1. c4 {[%clk 0:03:00]}  g6 {[%clk 0:02:56]} 2. g3 {[%clk 0:03:01]}  Bg7 {[%clk 0:02:56]} 3. Bg2 {[%clk 0:03:02]}  Nf6 {[%clk 0:02:56]} 4. Nc3 {[%clk 0:03:02]}  O-O {[%clk 0:02:56]} 5. d3 {[%clk 0:03:03]}  c5 {[%clk 0:02:51]} 6. e3 {[%clk 0:02:59]}  Nc6 {[%clk 0:02:50]} 7. Nge2 {[%clk 0:02:59]}  d6 {[%clk 0:02:50]} 8. O-O {[%clk 0:02:59]}  Bd7 {[%clk 0:02:46]} 9. h3 {[%clk 0:02:58]}  a6 {[%clk 0:02:45]} 10. b3 {[%clk 0:02:56]}  Rb8 {[%clk 0:02:45]} 11. Bb2 {[%clk 0:02:56]}  b5 {[%clk 0:02:45]} 12. Qd2 {[%clk 0:02:56]}  e6 {[%clk 0:02:39]} 13. Rad1 {[%clk 0:02:43]}  Qe7 {[%clk 0:02:36]} 14. Rfe1 {[%clk 0:02:39]}  Rfd8 {[%clk 0:02:35]} 15. Nf4 {[%clk 0:02:22]}  Be8 {[%clk 0:02:24]} 16. cxb5 {[%clk 0:02:09]}  axb5 {[%clk 0:02:24]} 17. d4 {[%clk 0:02:10]}  Na7 {[%clk 0:02:12]} 18. Nce2 {[%clk 0:01:39]}  e5 {[%clk 0:01:56]} 19. Nd5 {[%clk 0:01:34]}  Nxd5 {[%clk 0:01:53]} 20. Bxd5 {[%clk 0:01:35]}  Bc6 {[%clk 0:01:48]} 21. Bxc6 {[%clk 0:01:13]}  Nxc6 {[%clk 0:01:49]} 22. d5 {[%clk 0:01:14]}  Na7 {[%clk 0:01:47]} 23. e4 {[%clk 0:01:12]}  b4 {[%clk 0:01:46]} 24. f4 {[%clk 0:01:05]}  Nb5 {[%clk 0:01:43]} 25. f5 {[%clk 0:01:01]}  Ra8 {[%clk 0:01:40]} 26. Ra1 {[%clk 0:00:55]}  Ra7 {[%clk 0:01:34]} 27. Qd3 {[%clk 0:00:56]}  Ra5 {[%clk 0:01:26]} 28. Rf1 {[%clk 0:00:39]}  Nd4 {[%clk 0:01:07]} 29. a4 {[%clk 0:00:20]}  bxa3 {[%clk 0:00:59]} 30. Rxa3 {[%clk 0:00:21]}  Rxa3 {[%clk 0:00:59]} 31. Bxa3 {[%clk 0:00:22]}  Rb8 {[%clk 0:01:00]} 32. Nxd4 {[%clk 0:00:21]}  exd4 {[%clk 0:01:01]} 33. Bc1 {[%clk 0:00:19]}  Be5 {[%clk 0:01:00]} 34. Bf4 {[%clk 0:00:20]}  Ra8 {[%clk 0:00:51]} 35. Rf2 {[%clk 0:00:17]}  Ra1+ {[%clk 0:00:50]} 36. Kg2 {[%clk 0:00:18]}  Bxf4 {[%clk 0:00:46]} 37. gxf4 {[%clk 0:00:18]}  gxf5 {[%clk 0:00:20]} 38. e5 {[%clk 0:00:18]}  dxe5 {[%clk 0:00:14]} 39. Qxf5 {[%clk 0:00:19]}  e4 {[%clk 0:00:11]} 40. Kh2 {[%clk 0:00:19]}  Ra8 {[%clk 0:00:10]} 41. Rg2+ {[%clk 0:00:16]}  Kh8 {[%clk 0:00:10]} 42. Qg4 {[%clk 0:00:09]}  Qf6 {[%clk 0:00:09]} 43. d6 {[%clk 0:00:08]}  e3 {[%clk 0:00:09]} 44. d7 {[%clk 0:00:09]}  Rd8 {[%clk 0:00:08]} 45. Rg3 {[%clk 0:00:07]}  h6 {[%clk 0:00:04]} 46. h4 {[%clk 0:00:07]}  Qg6 {[%clk 0:00:03]} 47. Qf3 {[%clk 0:00:06]}  Qf6 {[%clk 0:00:04]} 48. Qg4 {[%clk 0:00:06]}  Kh7 {[%clk 0:00:04]} 49. h5 {[%clk 0:00:06]}  Kh8 {[%clk 0:00:05]} 50. Kg1 {[%clk 0:00:02]}  Kh7 {[%clk 0:00:04]} 51. Kh2 {[%clk 0:00:03]}  Kh8 {[%clk 0:00:04]} 52. Kh1 {[%clk 0:00:02]}  Kh7 {[%clk 0:00:02]} 53. Kh2 {[%clk 0:00:03]} 1/2-1/2


[Site "https://www.chess.com"]

[Event "Titled Tuesday Blitz November 15 Early 2022"]
[White "Matveeva, Olga"]
[Black "Dias, Joao Batista"]
[WhiteFideId "24107018"]
[BlackFideId "2108240"]
[WhiteElo "2055"]
[BlackElo "1898"]
[Result "0-1"]
[Round "10"]
[TimeControl "180+1"]
[Date "2022.11.16"]
[WhiteClock "0:00:11"]
[BlackClock "0:00:48"]

1. d4 {[%clk 0:03:00]}  g6 {[%clk 0:02:58]} 2. c4 {[%clk 0:03:01]}  Bg7 {[%clk 0:02:59]} 3. Nf3 {[%clk 0:03:01]}  c5 {[%clk 0:02:59]} 4. d5 {[%clk 0:03:01]}  d6 {[%clk 0:02:59]} 5. e4 {[%clk 0:02:59]}  Nd7 {[%clk 0:02:57]} 6. h3 {[%clk 0:02:57]}  Ngf6 {[%clk 0:02:57]} 7. Nc3 {[%clk 0:02:56]}  O-O {[%clk 0:02:57]} 8. Bd3 {[%clk 0:02:56]}  a6 {[%clk 0:02:57]} 9. a4 {[%clk 0:02:55]}  Re8 {[%clk 0:02:56]} 10. O-O {[%clk 0:02:54]}  Nf8 {[%clk 0:02:51]} 11. Bg5 {[%clk 0:02:50]}  h6 {[%clk 0:02:51]} 12. Bf4 {[%clk 0:02:49]}  N8h7 {[%clk 0:02:50]} 13. Qd2 {[%clk 0:02:47]}  g5 {[%clk 0:02:49]} 14. Bh2 {[%clk 0:02:44]}  e6 {[%clk 0:02:46]} 15. Rfe1 {[%clk 0:02:39]}  e5 {[%clk 0:02:46]} 16. a5 {[%clk 0:02:36]}  Nh5 {[%clk 0:02:43]} 17. Na4 {[%clk 0:02:30]}  Nf4 {[%clk 0:02:41]} 18. Bf1 {[%clk 0:02:29]}  Nf6 {[%clk 0:02:34]} 19. Nb6 {[%clk 0:02:27]}  Rb8 {[%clk 0:02:33]} 20. b4 {[%clk 0:02:25]}  Nd7 {[%clk 0:02:23]} 21. b5 {[%clk 0:02:16]}  Nxb6 {[%clk 0:02:20]} 22. axb6 {[%clk 0:02:16]}  axb5 {[%clk 0:02:20]} 23. Qa5 {[%clk 0:02:10]}  h5 {[%clk 0:02:07]} 24. Qxb5 {[%clk 0:02:07]}  g4 {[%clk 0:02:06]} 25. hxg4 {[%clk 0:02:02]}  Bd7 {[%clk 0:02:05]} 26. Qb3 {[%clk 0:01:58]}  hxg4 {[%clk 0:02:05]} 27. Nd2 {[%clk 0:01:57]}  Bh6 {[%clk 0:01:50]} 28. Ra2 {[%clk 0:01:53]}  Qh4 {[%clk 0:01:46]} 29. Bg3 {[%clk 0:01:49]}  Qg5 {[%clk 0:01:42]} 30. Rea1 {[%clk 0:01:38]}  Kg7 {[%clk 0:01:41]} 31. Bxf4 {[%clk 0:01:28]}  exf4 {[%clk 0:01:38]} 32. f3 {[%clk 0:01:15]}  g3 {[%clk 0:01:36]} 33. Qc3+ {[%clk 0:01:01]}  Kg6 {[%clk 0:01:29]} 34. e5 {[%clk 0:00:59]}  Bf5 {[%clk 0:01:25]} 35. Bd3 {[%clk 0:00:53]}  Rxe5 {[%clk 0:01:24]} 36. Nf1 {[%clk 0:00:18]}  Bg7 {[%clk 0:01:20]} 37. Qc2 {[%clk 0:00:16]}  Rh8 {[%clk 0:01:15]} 38. Ra8 {[%clk 0:00:14]}  Rh5 {[%clk 0:01:01]} 39. R1a7 {[%clk 0:00:11]}  Qh4 {[%clk 0:00:50]} 40. Bxf5+ {[%clk 0:00:11]}  Rexf5 {[%clk 0:00:48]} 0-1


[Site "https://www.chess.com"]

[Event "Titled Tuesday Blitz November 15 Early 2022"]
[White "Mgeladze, Tamaz"]
[Black "Wirig, Anthony"]
[WhiteFideId "13601202"]
[BlackFideId "615013"]
[WhiteElo "2288"]
[BlackElo "2487"]
[Result "0-1"]
[Round "10"]
[TimeControl "180+1"]
[Date "2022.11.15"]
[WhiteClock "0:00:06"]
[BlackClock "0:00:08"]

1. c4 {[%clk 0:03:00]}  c5 {[%clk 0:02:59]} 2. Nc3 {[%clk 0:03:00]}  g6 {[%clk 0:02:58]} 3. g3 {[%clk 0:03:01]}  Bg7 {[%clk 0:02:59]} 4. Bg2 {[%clk 0:03:01]}  Nc6 {[%clk 0:02:59]} 5. Nf3 {[%clk 0:03:02]}  d6 {[%clk 0:02:59]} 6. O-O {[%clk 0:03:02]}  Bf5 {[%clk 0:02:59]} 7. h3 {[%clk 0:03:01]}  Nf6 {[%clk 0:02:59]} 8. d3 {[%clk 0:03:02]}  O-O {[%clk 0:02:59]} 9. a3 {[%clk 0:03:01]}  Rb8 {[%clk 0:02:59]} 10. Rb1 {[%clk 0:03:01]}  a6 {[%clk 0:03:00]} 11. b4 {[%clk 0:03:01]}  cxb4 {[%clk 0:03:00]} 12. axb4 {[%clk 0:03:02]}  b5 {[%clk 0:03:01]} 13. c5 {[%clk 0:03:00]}  dxc5 {[%clk 0:03:00]} 14. bxc5 {[%clk 0:03:00]}  e5 {[%clk 0:02:48]} 15. Bg5 {[%clk 0:02:56]}  h6 {[%clk 0:02:40]} 16. Bxf6 {[%clk 0:02:56]}  Bxf6 {[%clk 0:02:40]} 17. Nd2 {[%clk 0:02:56]}  Qd7 {[%clk 0:02:31]} 18. Nd5 {[%clk 0:02:55]}  Bg7 {[%clk 0:02:27]} 19. Ne4 {[%clk 0:02:50]}  Kh8 {[%clk 0:02:15]} 20. g4 {[%clk 0:02:13]}  Be6 {[%clk 0:02:06]} 21. Ne3 {[%clk 0:02:10]}  f5 {[%clk 0:02:00]} 22. gxf5 {[%clk 0:02:11]}  gxf5 {[%clk 0:02:01]} 23. Nd6 {[%clk 0:02:12]}  f4 {[%clk 0:01:43]} 24. Ng4 {[%clk 0:02:01]}  Bxg4 {[%clk 0:01:12]} 25. hxg4 {[%clk 0:02:01]}  Qxg4 {[%clk 0:01:12]} 26. f3 {[%clk 0:01:28]}  Qg6 {[%clk 0:01:03]} 27. Rf2 {[%clk 0:01:21]}  Nd4 {[%clk 0:00:57]} 28. Kf1 {[%clk 0:01:19]}  b4 {[%clk 0:00:53]} 29. Qa4 {[%clk 0:01:15]}  b3 {[%clk 0:00:53]} 30. Bh3 {[%clk 0:00:59]}  Qg3 {[%clk 0:00:48]} 31. Qd7 {[%clk 0:00:56]}  Nc2 {[%clk 0:00:39]} 32. Nc4 {[%clk 0:00:24]}  Rfd8 {[%clk 0:00:23]} 33. Qg4 {[%clk 0:00:25]}  Rd5 {[%clk 0:00:15]} 34. c6 {[%clk 0:00:21]}  Qxg4 {[%clk 0:00:13]} 35. Bxg4 {[%clk 0:00:21]}  Rc5 {[%clk 0:00:14]} 36. Bd7 {[%clk 0:00:17]}  Nd4 {[%clk 0:00:13]} 37. Rg2 {[%clk 0:00:11]}  Nxc6 {[%clk 0:00:13]} 38. Bxc6 {[%clk 0:00:09]}  Rxc6 {[%clk 0:00:13]} 39. Ke1 {[%clk 0:00:08]}  Rc5 {[%clk 0:00:08]} 40. Kd2 {[%clk 0:00:08]}  a5 {[%clk 0:00:08]} 41. Rbg1 {[%clk 0:00:05]}  Rb7 {[%clk 0:00:07]} 42. Kc3 {[%clk 0:00:05]}  a4 {[%clk 0:00:07]} 43. Ra1 {[%clk 0:00:04]}  e4+ {[%clk 0:00:07]} 44. d4 {[%clk 0:00:04]}  Rbc7 {[%clk 0:00:07]} 45. Kb4 {[%clk 0:00:01]}  Rxc4+ {[%clk 0:00:07]} 46. Ka3 {[%clk 0:00:02]}  Bxd4 {[%clk 0:00:05]} 47. Rg6 {[%clk 0:00:03]}  Bxa1 {[%clk 0:00:05]} 48. Rxh6+ {[%clk 0:00:03]}  Kg7 {[%clk 0:00:06]} 49. e3 {[%clk 0:00:03]}  Bf6 {[%clk 0:00:06]} 50. Rh4 {[%clk 0:00:04]}  Be7+ {[%clk 0:00:07]} 51. Kb2 {[%clk 0:00:04]}  Bxh4 {[%clk 0:00:08]} 52. Kb1 {[%clk 0:00:05]}  Bf6 {[%clk 0:00:07]} 53. exf4 {[%clk 0:00:06]}  Rc1# {[%clk 0:00:08]} 0-1


[Site "https://www.chess.com"]

[Event "Titled Tuesday Blitz November 15 Early 2022"]
[White "Mohammed, Zozek Salah Mohammed"]
[Black "Pinheiro, Iung Alicio de O."]
[WhiteFideId "4803361"]
[BlackFideId "2104350"]
[WhiteElo "2199"]
[BlackElo "2283"]
[Result "1/2-1/2"]
[Round "10"]
[TimeControl "180+1"]
[Date "2022.11.16"]
[WhiteClock "0:00:57"]
[BlackClock "0:00:15"]

1. d4 {[%clk 0:03:00]}  Nf6 {[%clk 0:02:59]} 2. Nf3 {[%clk 0:02:58]}  g6 {[%clk 0:02:59]} 3. g3 {[%clk 0:02:58]}  Bg7 {[%clk 0:02:58]} 4. Bg2 {[%clk 0:02:59]}  d6 {[%clk 0:02:59]} 5. O-O {[%clk 0:02:59]}  O-O {[%clk 0:03:00]} 6. c4 {[%clk 0:02:56]}  Nbd7 {[%clk 0:02:32]} 7. Nc3 {[%clk 0:02:55]}  e5 {[%clk 0:02:32]} 8. e4 {[%clk 0:02:55]}  exd4 {[%clk 0:02:24]} 9. Nxd4 {[%clk 0:02:56]}  Re8 {[%clk 0:02:23]} 10. Re1 {[%clk 0:02:54]}  a6 {[%clk 0:02:23]} 11. b3 {[%clk 0:02:54]}  Rb8 {[%clk 0:02:23]} 12. Bb2 {[%clk 0:02:53]}  Ne5 {[%clk 0:02:18]} 13. h3 {[%clk 0:02:52]}  c5 {[%clk 0:02:18]} 14. Nc2 {[%clk 0:02:47]}  b5 {[%clk 0:02:18]} 15. cxb5 {[%clk 0:02:43]}  axb5 {[%clk 0:02:18]} 16. Ne3 {[%clk 0:02:37]}  b4 {[%clk 0:02:09]} 17. Ncd5 {[%clk 0:02:36]}  Nxd5 {[%clk 0:02:09]} 18. Nxd5 {[%clk 0:02:36]}  Nf3+ {[%clk 0:02:00]} 19. Qxf3 {[%clk 0:02:36]}  Bxb2 {[%clk 0:02:00]} 20. Rad1 {[%clk 0:02:35]}  Be6 {[%clk 0:02:00]} 21. Qd3 {[%clk 0:02:19]}  Bxd5 {[%clk 0:01:29]} 22. Qxd5 {[%clk 0:02:17]}  Be5 {[%clk 0:01:22]} 23. f4 {[%clk 0:02:15]}  Bd4+ {[%clk 0:01:22]} 24. Kh2 {[%clk 0:02:15]}  Qa5 {[%clk 0:01:12]} 25. Re2 {[%clk 0:02:14]}  Qa6 {[%clk 0:01:07]} 26. Red2 {[%clk 0:02:11]}  Re6 {[%clk 0:01:02]} 27. h4 {[%clk 0:02:06]}  Rbe8 {[%clk 0:01:02]} 28. Rc2 {[%clk 0:01:57]}  Qb6 {[%clk 0:00:51]} 29. Rdd2 {[%clk 0:01:35]}  Kg7 {[%clk 0:00:50]} 30. f5 {[%clk 0:01:33]}  Re5 {[%clk 0:00:45]} 31. Qc4 {[%clk 0:01:27]}  gxf5 {[%clk 0:00:44]} 32. exf5 {[%clk 0:01:27]}  Re3 {[%clk 0:00:43]} 33. Rf2 {[%clk 0:01:17]}  f6 {[%clk 0:00:28]} 34. Rce2 {[%clk 0:01:10]}  Qd8 {[%clk 0:00:24]} 35. Rxe3 {[%clk 0:01:05]}  Rxe3 {[%clk 0:00:25]} 36. Re2 {[%clk 0:01:05]}  Qe7 {[%clk 0:00:23]} 37. Rxe3 {[%clk 0:01:04]}  Qxe3 {[%clk 0:00:24]} 38. Qe6 {[%clk 0:01:04]}  Qxe6 {[%clk 0:00:09]} 39. fxe6 {[%clk 0:01:05]}  f5 {[%clk 0:00:09]} 40. Bd5 {[%clk 0:01:02]}  Kf6 {[%clk 0:00:09]} 41. Kg2 {[%clk 0:01:01]}  Be5 {[%clk 0:00:08]} 42. Kf3 {[%clk 0:01:00]}  h6 {[%clk 0:00:08]} 43. g4 {[%clk 0:01:00]}  fxg4+ {[%clk 0:00:08]} 44. Kxg4 {[%clk 0:01:01]}  Bc3 {[%clk 0:00:08]} 45. Kh5 {[%clk 0:01:00]}  Be1 {[%clk 0:00:07]} 46. Kg4 {[%clk 0:00:58]}  Bf2 {[%clk 0:00:06]} 47. Kh5 {[%clk 0:00:56]}  Be1 {[%clk 0:00:07]} 48. Kxh6 {[%clk 0:00:55]}  Bxh4 {[%clk 0:00:07]} 49. Kh7 {[%clk 0:00:56]}  Ke7 {[%clk 0:00:07]} 50. Kg7 {[%clk 0:00:55]}  Be1 {[%clk 0:00:08]} 51. Kg6 {[%clk 0:00:54]}  Bd2 {[%clk 0:00:08]} 52. Kf5 {[%clk 0:00:54]}  Bc3 {[%clk 0:00:08]} 53. Bc4 {[%clk 0:00:54]}  Be1 {[%clk 0:00:08]} 54. Ke4 {[%clk 0:00:54]}  Bd2 {[%clk 0:00:08]} 55. Kd5 {[%clk 0:00:55]}  Be1 {[%clk 0:00:08]} 56. Kc6 {[%clk 0:00:55]}  Bd2 {[%clk 0:00:08]} 57. Kb5 {[%clk 0:00:56]}  Be1 {[%clk 0:00:08]} 58. Ka4 {[%clk 0:00:56]}  Bd2 {[%clk 0:00:08]} 59. a3 {[%clk 0:00:53]}  bxa3 {[%clk 0:00:09]} 60. Kxa3 {[%clk 0:00:54]}  Bb4+ {[%clk 0:00:10]} 61. Ka4 {[%clk 0:00:54]}  Be1 {[%clk 0:00:11]} 62. Kb5 {[%clk 0:00:54]}  Bb4 {[%clk 0:00:11]} 63. Kc6 {[%clk 0:00:55]}  Be1 {[%clk 0:00:12]} 64. Kd5 {[%clk 0:00:56]}  Bb4 {[%clk 0:00:13]} 65. Kc6 {[%clk 0:00:56]}  Be1 {[%clk 0:00:14]} 66. Kd5 {[%clk 0:00:57]}  Bb4 {[%clk 0:00:15]} 67. Kc6 {[%clk 0:00:57]} 1/2-1/2


[Site "https://www.chess.com"]

[Event "Titled Tuesday Blitz November 15 Early 2022"]
[White "Nugumanov, Bakhtiyar"]
[Black "Smietanska, Wiktoria"]
[WhiteFideId "13701797"]
[BlackFideId "21869359"]
[WhiteElo "2287"]
[BlackElo "1695"]
[Result "0-1"]
[Round "10"]
[TimeControl "180+1"]
[Date "2022.11.16"]
[WhiteClock "0:02:21"]
[BlackClock "0:01:54"]

1. Nf3 {[%clk 0:03:00]}  Nf6 {[%clk 0:02:36]} 2. c4 {[%clk 0:03:00]}  g6 {[%clk 0:02:31]} 3. g3 {[%clk 0:02:58]}  Bg7 {[%clk 0:02:32]} 4. Bg2 {[%clk 0:02:59]}  O-O {[%clk 0:02:31]} 5. O-O {[%clk 0:02:58]}  d6 {[%clk 0:02:31]} 6. Nc3 {[%clk 0:02:58]}  e5 {[%clk 0:02:31]} 7. d3 {[%clk 0:02:58]}  Nbd7 {[%clk 0:02:29]} 8. b4 {[%clk 0:02:55]}  c6 {[%clk 0:02:28]} 9. Rb1 {[%clk 0:02:40]}  Qe7 {[%clk 0:02:23]} 10. a4 {[%clk 0:02:40]}  d5 {[%clk 0:02:19]} 11. b5 {[%clk 0:02:30]}  Re8 {[%clk 0:02:12]} 12. cxd5 {[%clk 0:02:21]}  cxd5 {[%clk 0:02:10]} 13. Qb3 {[%clk 0:02:21]}  Nc5 {[%clk 0:02:00]} 14. Nxd5 {[%clk 0:02:20]}  Nxd5 {[%clk 0:01:54]} 15. Qxd5 {[%clk 0:02:21]}  Be6 {[%clk 0:01:54]} 0-1


[Site "https://www.chess.com"]

[Event "Titled Tuesday Blitz November 15 Early 2022"]
[White "Pajeken, Jakob Leon"]
[Black "Kovalev, Vladislav"]
[WhiteFideId "12942839"]
[BlackFideId "13504398"]
[WhiteElo "2429"]
[BlackElo "2556"]
[Result "1-0"]
[Round "10"]
[TimeControl "180+1"]
[Date "2022.11.15"]
[WhiteClock "0:00:11"]
[BlackClock "0:00:02"]

1. d4 {[%clk 0:03:00]}  Nf6 {[%clk 0:03:00]} 2. Nf3 {[%clk 0:03:01]}  g6 {[%clk 0:02:59]} 3. g3 {[%clk 0:03:01]}  Bg7 {[%clk 0:03:00]} 4. Bg2 {[%clk 0:03:02]}  O-O {[%clk 0:03:01]} 5. O-O {[%clk 0:03:03]}  d6 {[%clk 0:03:01]} 6. b3 {[%clk 0:03:03]}  c5 {[%clk 0:02:45]} 7. c4 {[%clk 0:03:03]}  Nc6 {[%clk 0:02:39]} 8. Bb2 {[%clk 0:03:03]}  Ne4 {[%clk 0:02:26]} 9. Nbd2 {[%clk 0:03:03]}  Bf5 {[%clk 0:02:27]} 10. e3 {[%clk 0:02:49]}  Qa5 {[%clk 0:02:11]} 11. Nxe4 {[%clk 0:01:51]}  Bxe4 {[%clk 0:02:11]} 12. Qe2 {[%clk 0:01:46]}  e6 {[%clk 0:01:20]} 13. Rfd1 {[%clk 0:01:34]}  Rfd8 {[%clk 0:01:20]} 14. d5 {[%clk 0:01:30]}  Bxb2 {[%clk 0:01:07]} 15. Qxb2 {[%clk 0:01:29]}  exd5 {[%clk 0:01:07]} 16. cxd5 {[%clk 0:01:19]}  Bxf3 {[%clk 0:00:58]} 17. Bxf3 {[%clk 0:01:16]}  Ne5 {[%clk 0:00:58]} 18. Be2 {[%clk 0:01:16]}  f5 {[%clk 0:00:56]} 19. Rab1 {[%clk 0:01:06]}  Qc7 {[%clk 0:00:52]} 20. Rbc1 {[%clk 0:01:03]}  a5 {[%clk 0:00:49]} 21. a3 {[%clk 0:01:00]}  b6 {[%clk 0:00:49]} 22. Qc2 {[%clk 0:00:55]}  Qe7 {[%clk 0:00:45]} 23. e4 {[%clk 0:00:52]}  Qf6 {[%clk 0:00:10]} 24. f4 {[%clk 0:00:46]}  Nf7 {[%clk 0:00:07]} 25. exf5 {[%clk 0:00:32]}  gxf5 {[%clk 0:00:08]} 26. Kg2 {[%clk 0:00:27]}  Re8 {[%clk 0:00:08]} 27. Bd3 {[%clk 0:00:27]}  Nh6 {[%clk 0:00:08]} 28. Re1 {[%clk 0:00:25]}  Kg7 {[%clk 0:00:07]} 29. Re2 {[%clk 0:00:23]}  Rxe2+ {[%clk 0:00:03]} 30. Qxe2 {[%clk 0:00:23]}  Ng4 {[%clk 0:00:04]} 31. Re1 {[%clk 0:00:20]}  Ra7 {[%clk 0:00:04]} 32. h3 {[%clk 0:00:20]}  Nh6 {[%clk 0:00:05]} 33. Qe6 {[%clk 0:00:18]}  Qxe6 {[%clk 0:00:05]} 34. Rxe6 {[%clk 0:00:19]}  Rd7 {[%clk 0:00:04]} 35. Kf3 {[%clk 0:00:19]}  a4 {[%clk 0:00:02]} 36. bxa4 {[%clk 0:00:18]}  Rc7 {[%clk 0:00:02]} 37. Bc4 {[%clk 0:00:19]}  Nf7 {[%clk 0:00:01]} 38. g4 {[%clk 0:00:18]}  fxg4+ {[%clk 0:00:02]} 39. hxg4 {[%clk 0:00:19]}  Ra7 {[%clk 0:00:02]} 40. Bb5 {[%clk 0:00:18]}  c4 {[%clk 0:00:02]} 41. Re4 {[%clk 0:00:14]}  c3 {[%clk 0:00:03]} 42. Rc4 {[%clk 0:00:15]}  Re7 {[%clk 0:00:02]} 43. Rxc3 {[%clk 0:00:15]}  Re1 {[%clk 0:00:03]} 44. Rc6 {[%clk 0:00:14]}  Ra1 {[%clk 0:00:03]} 45. Rxb6 {[%clk 0:00:11]}  Rxa3+ {[%clk 0:00:03]} 46. Ke4 {[%clk 0:00:12]}  Rg3 {[%clk 0:00:04]} 47. g5 {[%clk 0:00:12]}  Rg1 {[%clk 0:00:05]} 48. Rb7 {[%clk 0:00:12]}  Re1+ {[%clk 0:00:05]} 49. Kf5 {[%clk 0:00:12]}  Kf8 {[%clk 0:00:06]} 50. Kf6 {[%clk 0:00:11]}  Nd8 {[%clk 0:00:02]} 51. Rb8 {[%clk 0:00:11]} 1-0


[Site "https://www.chess.com"]